[Event "NJSK 2023 Jeugd C"]
[Site "Almelo, Netherlands"]
[Date "2023.05.05"]
[Round "8.15"]
[White "Rooijakkers, Liam"]
[Black "De Wit, Evan"]
[Result "1-0"]
[TimeControl "90min/40moves + 30min + 30sec/move"]
[WhiteElo "1322"]
[BlackElo "1563"]

1. e4 {[%clk 01:30:55]} {[%emt 00:00:03]} c5 {[%clk 01:30:57]} {[%emt
00:00:04]} 2. Nc3 {[%emt 00:00:08]} e6 {[%emt 00:00:04]} 3. g3 {[%clk
01:30:40]} {[%emt 00:00:34]} d5 {[%clk 01:30:34]} {[%emt 00:00:52]} 4. Bg2
{[%clk 01:29:55]} {[%emt 00:01:15]} d4 {[%clk 01:30:16]} {[%emt 00:00:48]} 5.
Nce2 {[%clk 01:30:14]} {[%emt 00:00:12]} e5 {[%clk 01:30:24]} {[%emt 00:00:21]}
6. Nf3 {[%clk 01:30:11]} {[%emt 00:00:34]} Nc6 {[%clk 01:30:47]} {[%emt
00:00:06]} 7. d3 {[%clk 01:29:50]} {[%emt 00:00:51]} Bd6 {[%clk 01:30:48]}
{[%emt 00:00:28]} 8. Bd2 {[%clk 01:28:46]} {[%emt 00:01:35]} Nf6 {[%clk
01:28:41]} {[%emt 00:02:37]} 9. c4 {[%clk 01:26:42]} {[%emt 00:02:34]} a5
{[%clk 01:27:37]} {[%emt 00:01:33]} 10. a3 {[%clk 01:25:24]} {[%emt 00:01:48]}
O-O {[%clk 01:25:33]} {[%emt 00:02:34]} 11. Qc1 {[%clk 01:22:14]} {[%emt
00:03:40]} Re8 {[%clk 01:25:11]} {[%emt 00:00:52]} 12. Nh4 {[%clk 01:19:27]}
{[%emt 00:03:19]} a4 {[%clk 01:24:58]} {[%emt 00:00:42]} 13. O-O {[%clk
01:18:47]} {[%emt 00:01:09]} Na5 {[%clk 01:25:11]} {[%emt 00:00:17]} 14. Bxa5
{[%clk 01:19:15]} {[%emt 00:00:03]} Rxa5 {[%clk 01:24:51]} {[%emt 00:00:49]} 15.
h3 {[%clk 01:14:50]} {[%emt 00:04:56]} b5 {[%clk 01:25:09]} {[%emt 00:00:12]}
16. cxb5 {[%clk 01:13:03]} {[%emt 00:02:16]} Rxb5 {[%clk 01:25:15]} {[%emt
00:00:24]} 17. Qc2 {[%clk 01:11:32]} {[%emt 00:02:01]} Be6 {[%clk 01:24:39]}
{[%emt 00:01:06]} 18. Nc1 {[%clk 01:11:25]} {[%emt 00:00:38]} Qa5 {[%clk
01:24:39]} {[%emt 00:00:29]} 19. Nf5 {[%clk 01:11:21]} {[%emt 00:00:35]} Bxf5
{[%clk 01:24:22]} {[%emt 00:00:46]} 20. exf5 {[%clk 01:11:49]} {[%emt
00:00:03]} Reb8 {[%clk 01:23:05]} {[%emt 00:01:46]} 21. Rb1 {[%clk 01:11:15]}
{[%emt 00:01:05]} Rc8 {[%clk 01:23:16]} {[%emt 00:00:18]} 22. Qc4 {[%clk
01:09:17]} {[%emt 00:02:28]} Rcb8 {[%clk 01:21:52]} {[%emt 00:01:55]} 23. Qc2
{[%clk 01:09:34]} {[%emt 00:00:13]} Qa6 {[%clk 01:20:06]} {[%emt 00:02:15]} 24.
Re1 {[%clk 01:05:55]} {[%emt 00:04:10]} Rc8 {[%clk 01:19:45]} {[%emt 00:00:50]}
25. Qc4 {[%clk 01:05:14]} {[%emt 00:01:11]} Rb6 {[%clk 01:18:35]} {[%emt
00:01:40]} 26. Qxa6 {[%clk 01:05:33]} {[%emt 00:00:12]} Rxa6 {[%clk 01:18:34]}
{[%emt 00:00:31]} 27. Bb7 {[%clk 01:05:54]} {[%emt 00:00:09]} Rb6 {[%clk
01:18:30]} {[%emt 00:00:34]} 28. Bxc8 {[%clk 01:06:15]} {[%emt 00:00:09]} Kf8
{[%clk 01:18:55]} {[%emt 00:00:04]} 29. b4 {[%clk 01:01:10]} {[%emt 00:05:35]}
cxb4 {[%clk 01:16:14]} {[%emt 00:03:10]} 30. axb4 {[%clk 01:01:02]} {[%emt
00:00:39]} Nd5 {[%clk 01:16:32]} {[%emt 00:00:11]} 31. Na2 {[%clk 01:00:14]}
{[%emt 00:01:18]} Ke7 {[%clk 01:16:30]} {[%emt 00:00:32]} 32. Rec1 {[%clk
01:00:03]} {[%emt 00:00:40]} Kd8 {[%clk 01:16:40]} {[%emt 00:00:20]} 33. f6
{[%clk 00:59:22]} {[%emt 00:01:13]} Nxf6 {[%clk 01:16:23]} {[%emt 00:00:46]} 34.
Bf5 {[%clk 00:59:07]} {[%emt 00:00:46]} g6 {[%clk 01:16:41]} {[%emt 00:00:11]}
35. Be4 {[%clk 00:58:53]} {[%emt 00:00:44]} Nd7 {[%clk 01:17:00]} {[%emt
00:00:11]} 36. Rc6 {[%clk 00:58:28]} {[%emt 00:00:56]} f5 {[%clk 01:16:51]}
{[%emt 00:00:39]} 37. Rxb6 {[%clk 00:57:39]} {[%emt 00:01:19]} Nxb6 {[%clk
01:17:14]} {[%emt 00:00:07]} 38. Bg2 {[%clk 00:57:40]} {[%emt 00:00:29]} Ke7
{[%clk 01:17:15]} {[%emt 00:00:29]} 39. Re1 {[%clk 00:57:29]} {[%emt 00:00:39]}
a3 {[%clk 01:17:21]} {[%emt 00:00:25]} 40. Bc6 {[%clk 00:57:08]} {[%emt
00:00:51]} Kf6 {[%clk 01:17:16]} {[%emt 00:00:35]} 41. Rc1 {[%clk 00:56:40]}
{[%emt 00:00:59]} Kg5 {[%clk 01:17:13]} {[%emt 00:00:33]} 42. f3 {[%clk
00:55:29]} {[%emt 00:01:40]} e4 {[%clk 01:15:17]} {[%emt 00:02:27]} 43. fxe4
{[%clk 00:50:37]} {[%emt 00:05:22]} Bxg3 {[%clk 01:15:24]} {[%emt 00:00:22]} 44.
exf5 {[%clk 00:50:15]} {[%emt 00:00:52]} Kxf5 {[%clk 01:15:15]} {[%emt
00:00:39]} 45. Kg2 {[%clk 00:48:43]} {[%emt 00:02:02]} Bh4 {[%clk 01:14:31]}
{[%emt 00:01:13]} 46. Kf3 {[%clk 00:48:29]} {[%emt 00:00:44]} h5 {[%clk
01:14:35]} {[%emt 00:00:26]} 47. Be4+ {[%clk 00:48:10]} {[%emt 00:00:50]} Kg5
{[%clk 01:14:56]} {[%emt 00:00:09]} 48. Rc5+ {[%clk 00:48:36]} {[%emt
00:00:04]} Kh6 {[%clk 01:15:11]} {[%emt 00:00:15]} 49. Rc6 {[%clk 00:48:59]}
{[%emt 00:00:08]} Na4 {[%clk 01:14:48]} {[%emt 00:00:53]} 50. Rxg6+ {[%clk
00:49:23]} {[%emt 00:00:05]} Kh7 {[%clk 01:15:15]} {[%emt 00:00:04]} 51. Ra6+
{[%emt 00:00:24]} Kg7 {[%clk 01:15:23]} 52. Rxa4 {[%clk 00:50:16]} {[%emt
00:00:03]} Kf6 {[%clk 01:15:39]} {[%emt 00:00:14]} 53. b5 {[%emt 00:00:22]} Ke7
{[%clk 01:15:53]} {[%emt 00:00:15]} 54. Rxa3 {[%clk 00:50:12]} {[%emt
00:00:44]} Kd6 {[%emt 00:00:15]} 55. Ra4 {[%clk 00:50:29]} {[%emt 00:00:06]}
Kc5 {[%clk 01:16:25]} {[%emt 00:00:19]} 56. Rc4+ {[%clk 00:50:53]} {[%emt
00:00:06]} Kxb5 {[%clk 01:16:51]} {[%emt 00:00:04]} 57. Rxd4 {[%clk 00:51:20]}
{[%emt 00:00:04]} Bf6 {[%clk 01:17:09]} {[%emt 00:00:12]} 58. Rd5+ {[%clk
00:51:38]} {[%emt 00:00:12]} Ka4 {[%clk 01:17:32]} {[%emt 00:00:07]} 59. Rxh5
{[%clk 00:51:50]} {[%emt 00:00:17]} Kb3 {[%clk 01:17:55]} {[%emt 00:00:07]} 60.
Bd5+ {[%clk 00:51:37]} {[%emt 00:00:43]} Kc2 {[%clk 01:18:18]} {[%emt
00:00:06]} 61. Ke2 {[%clk 00:51:32]} {[%emt 00:00:36]} Be7 {[%clk 01:18:18]}
{[%emt 00:00:31]} 62. Rh7 {[%clk 00:51:18]} {[%emt 00:00:43]} Bf8 {[%clk
01:18:03]} {[%emt 00:00:46]} 63. Rc7+ {[%clk 00:51:40]} {[%emt 00:00:08]} Kb1
{[%clk 01:18:10]} {[%emt 00:00:23]} 64. h4 {[%clk 00:51:43]} {[%emt 00:00:26]}
Bh6 {[%clk 01:17:14]} {[%emt 00:01:26]} 65. h5 {[%clk 00:52:04]} {[%emt
00:00:10]} Bf8 {[%clk 01:17:39]} {[%emt 00:00:04]} 66. Rc6 {[%clk 00:52:18]}
{[%emt 00:00:16]} Bg7 {[%clk 01:18:00]} {[%emt 00:00:09]} 67. h6 {[%clk
00:52:43]} {[%emt 00:00:05]} Bf8 {[%clk 01:18:21]} {[%emt 00:00:09]} 68. Rg6
{[%clk 00:53:00]} {[%emt 00:00:13]} 1-0

[Event "NJSK 2023 Jeugd C"]
[Site "Almelo, Netherlands"]
[Date "2023.05.06"]
[Round "9.1"]
[White "Zhu, Chenwu"]
[Black "Arnold, Rhys"]
[Result "1/2-1/2"]
[TimeControl "90min/40moves + 30min + 30sec/move"]
[WhiteElo "2052"]
[BlackElo "2003"]

1. e4 {[%clk 01:30:59]} c5 {[%clk 01:30:59]} {[%emt 00:00:01]} 2. Nf3 {[%clk
01:31:24]} {[%emt 00:00:04]} Nc6 {[%emt 00:00:08]} 3. d4 {[%clk 01:31:50]}
{[%emt 00:00:03]} cxd4 {[%clk 01:31:51]} {[%emt 00:00:02]} 4. Nxd4 {[%clk
01:32:17]} {[%emt 00:00:02]} Nf6 {[%clk 01:32:18]} {[%emt 00:00:04]} 5. Nc3
{[%clk 01:32:43]} {[%emt 00:00:04]} e5 {[%clk 01:32:41]} {[%emt 00:00:07]} 6.
Ndb5 {[%clk 01:33:10]} {[%emt 00:00:03]} d6 {[%clk 01:33:08]} {[%emt 00:00:03]}
7. Bg5 {[%clk 01:33:35]} {[%emt 00:00:04]} a6 {[%clk 01:33:36]} {[%emt
00:00:03]} 8. Na3 {[%clk 01:34:02]} {[%emt 00:00:02]} b5 {[%clk 01:34:02]}
{[%emt 00:00:05]} 9. Nd5 {[%clk 01:34:27]} {[%emt 00:00:03]} Be7 {[%clk
01:34:29]} {[%emt 00:00:04]} 10. Bxf6 {[%clk 01:34:53]} {[%emt 00:00:04]} Bxf6
{[%clk 01:34:55]} {[%emt 00:00:04]} 11. c3 {[%clk 01:35:19]} {[%emt 00:00:04]}
O-O {[%clk 01:35:11]} {[%emt 00:00:14]} 12. Nc2 {[%clk 01:35:39]} {[%emt
00:00:10]} Rb8 {[%clk 01:35:35]} {[%emt 00:00:06]} 13. a4 {[%clk 01:34:27]}
{[%emt 00:01:42]} bxa4 {[%clk 01:35:40]} {[%emt 00:00:26]} 14. Nce3 {[%clk
01:32:07]} {[%emt 00:02:49]} Rxb2 {[%clk 01:13:24]} {[%emt 00:22:45]} 15. Qxa4
{[%clk 01:28:05]} {[%emt 00:04:32]} Ne7 {[%clk 01:12:57]} {[%emt 00:00:57]} 16.
Bxa6 {[%clk 01:25:21]} {[%emt 00:03:14]} Nxd5 {[%clk 01:05:39]} {[%emt
00:07:48]} 17. Nxd5 {[%clk 01:23:14]} {[%emt 00:02:37]} Be6 {[%clk 01:03:24]}
{[%emt 00:02:45]} 18. Bc4 {[%clk 01:18:48]} {[%emt 00:04:57]} Bxd5 {[%clk
01:03:11]} {[%emt 00:00:42]} 19. Bxd5 {[%clk 01:18:36]} {[%emt 00:00:42]} Qb6
{[%clk 00:56:04]} {[%emt 00:07:36]} 20. O-O {[%clk 01:18:09]} {[%emt 00:00:57]}
Bg5 {[%clk 00:55:02]} {[%emt 00:01:33]} 21. Qd7 {[%clk 01:12:21]} {[%emt
00:06:18]} Qd8 {[%clk 00:44:14]} {[%emt 00:11:18]} 22. Qg4 {[%clk 01:10:04]}
{[%emt 00:02:47]} Qf6 {[%clk 00:39:02]} {[%emt 00:05:42]} 23. g3 {[%clk
01:05:54]} {[%emt 00:04:40]} Bd2 {[%clk 00:38:20]} {[%emt 00:01:13]} 24. Ra7
{[%clk 01:01:22]} {[%emt 00:05:02]} g6 {[%clk 00:36:44]} {[%emt 00:02:06]} 25.
Rc7 {[%clk 00:53:44]} {[%emt 00:08:08]} h5 {[%clk 00:29:55]} {[%emt 00:07:19]}
26. Qd1 {[%clk 00:47:09]} {[%emt 00:07:05]} Bh6 {[%clk 00:28:34]} {[%emt
00:01:50]} 27. Kg2 {[%clk 00:40:36]} {[%emt 00:07:03]} Be3 {[%clk 00:27:06]}
{[%emt 00:01:59]} 28. Qf3 {[%clk 00:38:53]} {[%emt 00:02:12]} Qxf3+ {[%clk
00:27:27]} {[%emt 00:00:10]} 29. Kxf3 {[%clk 00:35:54]} {[%emt 00:03:29]} Bc5
{[%clk 00:27:52]} {[%emt 00:00:05]} 30. h4 {[%clk 00:32:15]} {[%emt 00:04:08]}
1/2-1/2

[Event "NJSK 2023 Jeugd C"]
[Site "Almelo, Netherlands"]
[Date "2023.05.06"]
[Round "9.2"]
[White "Wink, Luka"]
[Black "Van Batenburg, Mees"]
[Result "0-1"]
[TimeControl "90min/40moves + 30min + 30sec/move"]
[WhiteElo "1849"]
[BlackElo "2054"]

1. e4 {[%clk 01:30:38]} {[%emt 00:00:22]} c5 {[%clk 01:30:56]} {[%emt
00:00:05]} 2. Nf3 {[%clk 01:31:01]} {[%emt 00:00:06]} Nc6 {[%clk 01:31:21]}
{[%emt 00:00:05]} 3. d4 {[%clk 01:31:23]} {[%emt 00:00:07]} cxd4 {[%clk
01:31:48]} {[%emt 00:00:04]} 4. Nxd4 {[%clk 01:31:48]} {[%emt 00:00:05]} e5
{[%clk 01:32:16]} {[%emt 00:00:03]} 5. Nb5 {[%clk 01:32:12]} {[%emt 00:00:06]}
d6 {[%clk 01:32:41]} {[%emt 00:00:05]} 6. c4 {[%clk 01:31:50]} {[%emt
00:00:50]} g6 {[%clk 01:32:59]} {[%emt 00:00:13]} 7. N1c3 {[%clk 01:32:09]}
{[%emt 00:00:12]} a6 {[%clk 01:33:25]} {[%emt 00:00:04]} 8. Na3 {[%clk
01:32:31]} {[%emt 00:00:08]} Be6 {[%clk 01:33:53]} {[%emt 00:00:02]} 9. Nc2
{[%clk 01:28:32]} {[%emt 00:04:28]} f5 {[%clk 01:34:03]} {[%emt 00:00:20]} 10.
exf5 {[%clk 01:26:59]} {[%emt 00:02:03]} gxf5 {[%clk 01:34:12]} {[%emt
00:00:21]} 11. Bd3 {[%clk 01:19:19]} {[%emt 00:08:11]} Nf6 {[%clk 01:15:47]}
{[%emt 00:18:54]} 12. Bg5 {[%clk 01:12:39]} {[%emt 00:07:10]} Bg7 {[%clk
01:06:35]} {[%emt 00:09:43]} 13. Ne3 {[%clk 00:49:38]} {[%emt 00:23:30]} Nd4
{[%clk 00:41:13]} {[%emt 00:25:52]} 14. Ne2 {[%clk 00:48:02]} {[%emt 00:02:05]}
Nxe2 {[%clk 00:33:53]} {[%emt 00:07:51]} 15. Qxe2 {[%clk 00:40:44]} {[%emt
00:07:48]} e4 {[%clk 00:31:50]} {[%emt 00:02:33]} 16. Bc2 {[%clk 00:36:32]}
{[%emt 00:04:42]} Qa5+ {[%clk 00:31:40]} {[%emt 00:00:40]} 17. Qd2 {[%clk
00:33:48]} {[%emt 00:03:14]} Qxd2+ {[%clk 00:31:42]} {[%emt 00:00:26]} 18. Kxd2
{[%clk 00:34:17]} {[%emt 00:00:02]} Rc8 {[%clk 00:25:07]} {[%emt 00:07:06]} 19.
Rad1 {[%clk 00:24:12]} {[%emt 00:10:35]} b5 {[%clk 00:17:47]} {[%emt 00:07:51]}
20. b3 {[%clk 00:20:46]} {[%emt 00:03:55]} h6 {[%clk 00:15:55]} {[%emt
00:02:21]} 21. Bf4 {[%clk 00:19:01]} {[%emt 00:02:15]} Ke7 {[%clk 00:15:59]}
{[%emt 00:00:26]} 22. Ke1 {[%clk 00:09:26]} {[%emt 00:10:05]} Rhd8 {[%clk
00:16:03]} {[%emt 00:00:26]} 23. f3 {[%clk 00:09:13]} {[%emt 00:00:43]} bxc4
{[%clk 00:08:19]} {[%emt 00:08:14]} 24. bxc4 {[%clk 00:09:35]} {[%emt
00:00:08]} Rc5 {[%clk 00:08:35]} {[%emt 00:00:14]} 25. Bb3 {[%clk 00:08:42]}
{[%emt 00:01:24]} Nh5 {[%clk 00:08:13]} {[%emt 00:00:52]} 26. Bg3 {[%clk
00:08:57]} {[%emt 00:00:15]} f4 {[%clk 00:08:26]} {[%emt 00:00:17]} 27. Bh4+
{[%clk 00:06:12]} {[%emt 00:03:14]} Bf6 {[%clk 00:08:00]} {[%emt 00:00:56]} 28.
Bxf6+ {[%clk 00:06:38]} {[%emt 00:00:04]} Nxf6 {[%clk 00:08:22]} {[%emt
00:00:08]} 29. Nd5+ {[%clk 00:06:33]} {[%emt 00:00:36]} Bxd5 {[%clk 00:07:44]}
{[%emt 00:01:08]} 30. cxd5 {[%clk 00:06:58]} {[%emt 00:00:05]} exf3 {[%clk
00:07:24]} {[%emt 00:00:50]} 31. gxf3 {[%clk 00:07:20]} {[%emt 00:00:07]} Rc3
{[%clk 00:07:35]} {[%emt 00:00:19]} 32. Kf2 {[%clk 00:07:25]} {[%emt 00:00:25]}
Nd7 {[%clk 00:07:38]} {[%emt 00:00:27]} 33. Rd4 {[%clk 00:07:00]} {[%emt
00:00:55]} Ne5 {[%clk 00:06:44]} {[%emt 00:01:25]} 34. Bd1 {[%clk 00:05:53]}
{[%emt 00:01:37]} Rb8 {[%clk 00:05:58]} {[%emt 00:01:15]} 35. Rd2 {[%clk
00:05:36]} {[%emt 00:00:47]} Rb1 {[%clk 00:05:08]} {[%emt 00:01:20]} 36. Rf1
{[%clk 00:04:38]} {[%emt 00:01:28]} Nxf3 {[%clk 00:02:47]} {[%emt 00:02:52]} 37.
Bxf3 {[%clk 00:05:04]} {[%emt 00:00:03]} Rxf1+ {[%clk 00:03:08]} {[%emt
00:00:09]} 38. Kxf1 {[%clk 00:05:29]} {[%emt 00:00:05]} Rxf3+ {[%clk 00:03:33]}
{[%emt 00:00:05]} 39. Kg2 {[%clk 00:05:46]} {[%emt 00:00:13]} Re3 {[%clk
00:03:48]} {[%emt 00:00:16]} 40. Rf2 {[%clk 00:05:15]} {[%emt 00:01:04]} Re4
{[%clk 00:03:48]} {[%emt 00:00:27]} 41. Kf3 {[%clk 00:04:46]} {[%emt 00:00:58]}
Rd4 {[%clk 00:04:06]} {[%emt 00:00:12]} 42. Re2+ {[%clk 00:04:31]} {[%emt
00:00:45]} Kd7 {[%clk 00:03:19]} {[%emt 00:01:17]} 43. Re4 {[%clk 00:04:16]}
{[%emt 00:00:45]} Rxd5 {[%clk 00:03:08]} {[%emt 00:00:41]} 44. Ra4 {[%clk
00:04:38]} {[%emt 00:00:09]} Rf5 {[%clk 00:02:22]} {[%emt 00:01:16]} 45. Rxa6
{[%clk 00:05:04]} {[%emt 00:00:04]} Ke6 {[%clk 00:02:26]} {[%emt 00:00:26]} 46.
Ra4 {[%clk 00:04:43]} {[%emt 00:00:51]} Rh5 {[%clk 00:01:37]} {[%emt 00:01:19]}
47. Rxf4 {[%clk 00:04:40]} {[%emt 00:00:33]} Rxh2 {[%clk 00:02:04]} {[%emt
00:00:03]} 48. a4 {[%clk 00:04:59]} {[%emt 00:00:10]} Ra2 {[%clk 00:02:14]}
{[%emt 00:00:21]} 49. Rh4 {[%clk 00:05:17]} {[%emt 00:00:11]} Ke5 {[%clk
00:02:03]} {[%emt 00:00:42]} 50. Rh5+ {[%clk 00:05:27]} {[%emt 00:00:19]} Kd4
{[%clk 00:02:02]} {[%emt 00:00:31]} 51. Rxh6 {[%clk 00:05:50]} {[%emt
00:00:07]} d5 {[%clk 00:02:19]} {[%emt 00:00:13]} 52. Rh8 {[%clk 00:05:42]}
{[%emt 00:00:37]} Kd3 {[%clk 00:02:34]} {[%emt 00:00:16]} 53. Ra8 {[%clk
00:05:44]} {[%emt 00:00:28]} d4 {[%clk 00:02:42]} {[%emt 00:00:23]} 54. a5
{[%clk 00:06:06]} {[%emt 00:00:08]} Kd2 {[%clk 00:02:46]} {[%emt 00:00:24]} 55.
a6 {[%clk 00:06:15]} {[%emt 00:00:22]} d3 {[%clk 00:02:34]} {[%emt 00:00:42]}
56. a7 {[%clk 00:06:34]} {[%emt 00:00:12]} Ra6 {[%clk 00:02:29]} {[%emt
00:00:35]} 57. Kf2 {[%clk 00:06:47]} {[%emt 00:00:16]} Rf6 {[%clk 00:02:42]}
{[%emt 00:00:17]} 58. Kg2 {[%clk 00:07:12]} {[%emt 00:00:05]} Rf7 {[%clk
00:02:59]} {[%emt 00:00:12]} 59. Kg3 {[%clk 00:07:29]} {[%emt 00:00:13]} Rd7
{[%clk 00:03:17]} {[%emt 00:00:13]} 60. Kf2 {[%clk 00:07:46]} {[%emt 00:00:13]}
Kd1 {[%clk 00:03:20]} {[%emt 00:00:27]} 61. Kf1 {[%clk 00:07:25]} {[%emt
00:00:50]} d2 {[%clk 00:03:25]} {[%emt 00:00:27]} 62. Kf2 {[%clk 00:07:25]}
{[%emt 00:00:30]} Rf7+ {[%clk 00:03:26]} {[%emt 00:00:28]} 63. Kg2 {[%clk
00:07:50]} {[%emt 00:00:05]} Rc7 {[%clk 00:03:11]} {[%emt 00:00:44]} 64. Kf2
{[%clk 00:05:17]} {[%emt 00:03:04]} Kc2 {[%clk 00:03:07]} {[%emt 00:00:34]} 0-1

[Event "NJSK 2023 Jeugd C"]
[Site "Almelo, Netherlands"]
[Date "2023.05.06"]
[Round "9.3"]
[White "Zecha, Oscar"]
[Black "Madularea, David"]
[Result "1/2-1/2"]
[TimeControl "90min/40moves + 30min + 30sec/move"]
[WhiteElo "1879"]
[BlackElo "1895"]

1. d4 {[%clk 01:30:50]} {[%emt 00:00:09]} Nf6 {[%clk 01:30:34]} {[%emt
00:00:27]} 2. c4 {[%clk 01:31:18]} {[%emt 00:00:02]} g6 {[%clk 01:30:57]}
{[%emt 00:00:06]} 3. g3 {[%clk 01:31:46]} {[%emt 00:00:03]} c5 {[%clk
01:31:11]} {[%emt 00:00:17]} 4. d5 {[%clk 01:31:38]} {[%emt 00:00:37]} b5
{[%clk 01:31:23]} {[%emt 00:00:17]} 5. cxb5 {[%clk 01:30:47]} {[%emt 00:01:22]}
a6 {[%clk 01:31:32]} {[%emt 00:00:21]} 6. bxa6 {[%clk 01:30:25]} {[%emt
00:00:52]} d6 {[%clk 01:31:47]} {[%emt 00:00:14]} 7. Nc3 {[%clk 01:29:45]}
{[%emt 00:01:10]} Bg7 {[%clk 01:32:03]} {[%emt 00:00:13]} 8. e4 {[%clk
01:23:57]} {[%emt 00:06:20]} O-O {[%clk 01:31:17]} {[%emt 00:01:16]} 9. Nf3
{[%clk 01:23:50]} {[%emt 00:00:37]} Qb6 {[%clk 01:27:06]} {[%emt 00:04:40]} 10.
Be2 {[%clk 01:21:21]} {[%emt 00:03:00]} Bxa6 {[%clk 01:20:09]} {[%emt
00:07:27]} 11. O-O {[%clk 01:21:24]} {[%emt 00:00:27]} Nbd7 {[%clk 01:19:43]}
{[%emt 00:00:56]} 12. Nd2 {[%clk 01:15:17]} {[%emt 00:06:37]} Rfb8 {[%clk
01:08:57]} {[%emt 00:11:16]} 13. a4 {[%clk 01:13:15]} {[%emt 00:02:32]} Qb4
{[%clk 01:08:23]} {[%emt 00:01:04]} 14. Bxa6 {[%clk 01:10:03]} {[%emt
00:03:42]} Rxa6 {[%clk 01:08:41]} {[%emt 00:00:11]} 15. Qe2 {[%clk 01:10:27]}
{[%emt 00:00:07]} Ra7 {[%clk 01:08:15]} {[%emt 00:00:56]} 16. Ra3 {[%clk
01:08:31]} {[%emt 00:02:25]} Rab7 {[%clk 01:03:41]} {[%emt 00:05:04]} 17. a5
{[%clk 00:54:34]} {[%emt 00:14:28]} Ra7 {[%clk 01:00:21]} {[%emt 00:03:49]} 18.
Nc4 {[%clk 00:50:51]} {[%emt 00:04:14]} Ne8 {[%clk 01:00:29]} {[%emt 00:00:22]}
19. f4 {[%clk 00:49:25]} {[%emt 00:01:56]} Nc7 {[%clk 01:00:44]} {[%emt
00:00:14]} 20. e5 {[%clk 00:45:50]} {[%emt 00:04:06]} dxe5 {[%clk 00:57:02]}
{[%emt 00:04:12]} 21. fxe5 {[%clk 00:46:00]} {[%emt 00:00:20]} Bxe5 {[%clk
00:57:05]} {[%emt 00:00:25]} 22. Ra4 {[%clk 00:27:49]} {[%emt 00:18:43]} Bd4+
{[%clk 00:54:13]} {[%emt 00:03:22]} 23. Kh1 {[%clk 00:26:22]} {[%emt 00:01:58]}
Qb3 {[%clk 00:50:50]} {[%emt 00:03:52]} 24. Ra3 {[%clk 00:26:31]} {[%emt
00:00:21]} Qb4 {[%clk 00:50:16]} {[%emt 00:01:03]} 25. Ra4 {[%clk 00:24:44]}
{[%emt 00:02:18]} Qb3 {[%clk 00:50:12]} {[%emt 00:00:33]} 26. Ra3 {[%clk
00:23:42]} {[%emt 00:01:33]} Qb4 {[%clk 00:50:37]} {[%emt 00:00:05]} 27. Ra4
{[%clk 00:23:59]} {[%emt 00:00:14]} Qb3 {[%clk 00:50:59]} {[%emt 00:00:07]}
1/2-1/2